[Event "EIRCC 2019"]
[Site "Tallinn"]
[Date "2019.12.05"]
[Round "2.28"]
[White "Kastner, Walter"]
[Black "Thorfinnsson, Bragi"]
[Result "0-1"]
[ECO "A48"]
[WhiteElo "2139"]
[BlackElo "2457"]
[Annotator "ChessBase"]
[PlyCount "78"]
[EventDate "2019.12.05"]
[EventType "swiss"]
[EventCountry "EST"]
[SourceTitle "playchess.com"]
[Source "ChessBase"]
[SourceQuality "1"]
[TimeControl "900+10"]

1. d4 {[%emt 0:00:00]} Nf6 {[%emt 0:00:00]} 2. Nf3 {[%emt 0:00:00]} g6 {[%emt 0:00:05]} 3. Nbd2 {[%emt 0:00:02]} d5 {[%emt 0:00:33]} 4. b4 {[%emt 0:00:02]} Bg7 {[%emt 0:00:07]} 5. e3 {[%emt 0:00:02]} c6 {[%emt 0:00:02]} 6. Be2 {[%emt 0:00:06]} O-O {[%emt 0:00:29]} 7. O-O {[%emt 0:00:09]} a5 {[%emt 0:00:03]} 8. b5 {[%emt 0:00:23]} c5 {[%emt 0:00:38]} 9. c3 {[%emt 0:01:53]} c4 {[%emt 0:01:07]} 10. Ne5 {[%emt 0:00:18]} Bf5 {[%emt 0:00:44]} 11. Re1 {[%emt 0:00:33]} Nfd7 {[%emt 0:00:50]} 12. Nxd7 {[%emt 0:01:46]} Nxd7 {[%emt 0:01:06]} 13. Bf3 {[%emt 0:00:34]} Nb6 {[%emt 0:00:17]} 14. e4 {[%emt 0:00:10]} dxe4 {[%emt 0:00:17]} 15. Nxe4 {[%emt 0:00:06]} Nd5 {[%emt 0:00:48]} 16. Bd2 {[%emt 0:00:51]} Rc8 {[%emt 0:01:41]} 17. Ng3 {[%emt 0:01:31]} Bd3 {[%emt 0:00:05]} 18. Bxd5 {[%emt 0:02:33]} Qxd5 {[%emt 0:00:02]} 19. a4 {[%emt 0:00:01]} e5 {[%emt 0:00:20]} 20. dxe5 {[%emt 0:00:05]} Bxe5 {[%emt 0:00:02]} 21. Qc1 {[%emt 0:00:02]} Rfe8 {[%emt 0:00:19]} 22. Be3 {[%emt 0:01:49]} h5 {[%emt 0:00:24]} 23. Ne2 {[%emt 0:00:02]} h4 {[%emt 0:01:26]} 24. h3 {[%emt 0:00:17]} Bb8 {[%emt 0:00:48]} 25. Qd2 {[%emt 0:01:54]} Qd6 {[%emt 0:00:39]} 26. f4 {[%emt 0:02:13]} Re4 {[%emt 0:01:20]} 27. Nd4 {[%emt 0:00:54]} Qf6 {[%emt 0:00:02]} 28. Nf3 {[%emt 0:00:26]} Rce8 {[%emt 0:00:19]} 29. Bd4 {[%emt 0:00:20]} Qxf4 {[%emt 0:00:30]} 30. Qxf4 {[%emt 0:00:07]} Bxf4 {[%emt 0:00:01]} 31. Rxe4 {[%emt 0:00:23]} Rxe4 {[%emt 0:00:02]} 32. Nxh4 {[%emt 0:00:11]} Rxd4 {[%emt 0:00:42]} 33. cxd4 {[%emt 0:00:08]} c3 {[%emt 0:00:01]} 34. Nf3 {[%emt 0:00:23]} Be3+ {[%emt 0:00:38]} 35. Kh1 {[%emt 0:00:05]} c2 {[%emt 0:00:01]} 36. Ne1 {[%emt 0:00:03]} Be4 {[%emt 0:00:16]} 37. Nxc2 {[%emt 0:00:15]} Bxc2 {[%emt 0:00:01]} 38. Re1 {[%emt 0:00:01]} Bxd4 {[%emt 0:00:03]} 39. Re7 {[%emt 0:00:01]} b6 {[%emt 0:00:06]} 0-1

[Event "EIRCC 2019"]
[Site "Tallinn"]
[Date "2019.12.05"]
[Round "2.30"]
[White "Neff, Sergei"]
[Black "Galopoulos, Nikolaos"]
[Result "0-1"]
[ECO "A04"]
[WhiteElo "2131"]
[BlackElo "2439"]
[Annotator "NA"]
[PlyCount "62"]
[EventDate "2019.12.05"]
[EventType "swiss"]
[EventCountry "EST"]
[SourceTitle "playchess.com"]
[Source "ChessBase"]
[SourceQuality "1"]
[TimeControl "900+10"]

1. Nf3 {[%emt 0:01:39]} c5 {[%emt 0:00:00]} 2. g3 {[%emt 0:00:05]} Nc6 {[%emt 0:00:00]} 3. d4 {[%emt 0:00:07]} cxd4 {[%emt 0:00:00]} 4. Nxd4 {[%emt 0:00:01]} g6 {[%emt 0:00:00]} 5. Bg2 {[%emt 0:00:04]} Bg7 {[%emt 0:00:00]} 6. c3 {[%emt 0:00:38]} d5 {[%emt 0:00:30]} 7. Nxc6 {[%emt 0:00:27]} bxc6 {[%emt 0:00:02]} 8. e4 {[%emt 0:00:12]} Nf6 {[%emt 0:01:15]} 9. Bg5 {[%emt 0:00:53]} Rb8 {[%emt 0:00:19]} 10. b3 {[%emt 0:03:41]} Bg4 {[%emt 0:00:29]} 11. f3 {[%emt 0:00:38]} Be6 {[%emt 0:00:02]} 12. O-O {[%emt 0:00:35]} Qb6+ {[%emt 0:00:19]} 13. Kh1 {[%emt 0:00:02]} dxe4 {[%emt 0:00:02]} 14. fxe4 {[%emt 0:00:03]} O-O {[%emt 0:00:27]} 15. Qe1 {[%emt 0:00:30]} Rfd8 {[%emt 0:00:58]} 16. Be3 {[%emt 0:00:43]} Qa6 {[%emt 0:00:01]} 17. Bc5 {[%emt 0:00:25]} Rd7 {[%emt 0:00:14]} 18. Nd2 {[%emt 0:02:01]} Qd3 {[%emt 0:00:12]} 19. Bd4 {[%emt 0:00:51]} Ng4 {[%emt 0:01:28]} 20. e5 {[%emt 0:00:20]} c5 {[%emt 0:00:53]} 21. Be4 {[%emt 0:00:34]} Qb5 {[%emt 0:00:33]} 22. a4 {[%emt 0:00:57]} Qa5 {[%emt 0:00:22]} 23. b4 {[%emt 0:00:09]} cxb4 {[%emt 0:00:05]} 24. cxb4 {[%emt 0:00:01]} Rxb4 {[%emt 0:00:18]} 25. Bc3 {[%emt 0:00:02]} Bxe5 {[%emt 0:00:02]} 26. Bxb4 {[%emt 0:00:09]} Qxb4 {[%emt 0:00:01]} 27. Rd1 {[%emt 0:00:07]} Bc3 {[%emt 0:00:01]} 28. Rb1 {[%emt 0:01:03]} Rxd2 {[%emt 0:01:14]} 29. Qxd2 {[%emt 0:00:20]} Bxd2 {[%emt 0:00:04]} 30. Rxb4 {[%emt 0:00:01]} Bxb4 {[%emt 0:00:01]} 31. Kg2 {[%emt 0:00:05]} Ne3+ {[%emt 0:00:01]} 0-1

[Event "EIRCC 2019"]
[Site "Tallinn"]
[Date "2019.12.05"]
[Round "2.31"]
[White "Mustaps, Matiss"]
[Black "Antoms, Guntars"]
[Result "1-0"]
[ECO "B01"]
[WhiteElo "2435"]
[BlackElo "2118"]
[Annotator "NA"]
[PlyCount "73"]
[EventDate "2019.12.05"]
[EventType "swiss"]
[EventCountry "EST"]
[SourceTitle "playchess.com"]
[Source "ChessBase"]
[SourceQuality "1"]
[TimeControl "900+10"]

1. e4 {[%emt 0:00:07]} d5 {[%emt 0:00:00]} 2. exd5 {[%emt 0:00:01]} Qxd5 {[%emt 0:00:00]} 3. Nc3 {[%emt 0:00:01]} Qa5 {[%emt 0:00:00]} 4. d4 {[%emt 0:00:01]} Nf6 {[%emt 0:00:00]} 5. Nf3 Nc6 6. d5 {[%emt 0:00:17]} Nb4 {[%emt 0:00:09]} 7. Bb5+ {[%emt 0:00:01]} c6 {[%emt 0:00:23]} 8. dxc6 {[%emt 0:00:25]} bxc6 {[%emt 0:00:00]} 9. Ba4 {[%emt 0:00:00]} Ne4 {[%emt 0:03:15]} 10. a3 {[%emt 0:02:56]} Nxc3 {[%emt 0:00:30]} 11. axb4 {[%emt 0:00:01]} Qxa4 12. Rxa4 {[%emt 0:00:02]} Nxd1 {[%emt 0:00:10]} 13. Kxd1 {[%emt 0:00:01]} Bg4 {[%emt 0:00:24]} 14. Be3 {[%emt 0:00:13]} e6 {[%emt 0:03:34]} 15. c3 {[%emt 0:00:12]} Bd6 {[%emt 0:00:47]} 16. Ke2 {[%emt 0:00:34]} O-O {[%emt 0:00:17]} 17. h3 {[%emt 0:00:33]} Bh5 {[%emt 0:00:09]} 18. Rd1 {[%emt 0:01:23]} Bc7 {[%emt 0:00:56]} 19. Rd7 {[%emt 0:01:47]} Bb6 {[%emt 0:00:02]} 20. Bxb6 {[%emt 0:00:03]} axb6 {[%emt 0:00:01]} 21. Rxa8 {[%emt 0:00:01]} Rxa8 {[%emt 0:00:01]} 22. Rc7 {[%emt 0:00:18]} h6 {[%emt 0:00:19]} 23. g4 {[%emt 0:00:23]} Bg6 {[%emt 0:00:01]} 24. Ne5 {[%emt 0:00:02]} Ra2 {[%emt 0:00:14]} 25. Nxg6 {[%emt 0:00:06]} Rxb2+ {[%emt 0:00:03]} 26. Ke3 {[%emt 0:00:02]} fxg6 {[%emt 0:00:04]} 27. Rxc6 {[%emt 0:00:01]} Rc2 {[%emt 0:01:00]} 28. Kd3 {[%emt 0:00:44]} Rxf2 {[%emt 0:00:03]} 29. Rxb6 {[%emt 0:00:01]} Rf3+ {[%emt 0:00:04]} 30. Kc4 {[%emt 0:00:50]} Rxh3 {[%emt 0:00:03]} 31. Rxe6 {[%emt 0:00:03]} Rg3 {[%emt 0:00:06]} 32. b5 {[%emt 0:00:09]} Rxg4+ {[%emt 0:00:01]} 33. Kc5 {[%emt 0:00:14]} Rg5+ {[%emt 0:00:28]} 34. Kc6 {[%emt 0:00:13]} Rg1 {[%emt 0:00:02]} 35. b6 {[%emt 0:01:24]} Kf7 {[%emt 0:00:10]} 36. Re4 {[%emt 0:00:08]} Rc1 {[%emt 0:00:21]} 37. Rc4 {[%emt 0:00:01]} 1-0

[Event "EIRCC 2019"]
[Site "Tallinn"]
[Date "2019.12.05"]
[Round "2.32"]
[White "Siemer, Tambet"]
[Black "Cerveny, Martin"]
[Result "0-1"]
[ECO "D14"]
[WhiteElo "2128"]
[BlackElo "2432"]
[Annotator "NA"]
[PlyCount "72"]
[EventDate "2019.12.05"]
[EventType "swiss"]
[EventCountry "EST"]
[SourceTitle "playchess.com"]
[Source "ChessBase"]
[SourceQuality "1"]
[TimeControl "900+10"]

1. d4 {[%emt 0:00:00]} d5 {[%emt 0:00:00]} 2. c4 {[%emt 0:00:00]} c6 {[%emt 0:00:00]} 3. cxd5 {[%emt 0:00:12]} cxd5 {[%emt 0:00:00]} 4. Nc3 {[%emt 0:00:04]} Nc6 {[%emt 0:00:00]} 5. Nf3 {[%emt 0:00:17]} Nf6 {[%emt 0:00:00]} 6. Bf4 {[%emt 0:00:56]} Bf5 {[%emt 0:00:00]} 7. e3 {[%emt 0:00:12]} e6 {[%emt 0:00:00]} 8. Ne5 {[%emt 0:02:11]} Nxe5 {[%emt 0:01:49]} 9. Bxe5 {[%emt 0:00:29]} Nd7 {[%emt 0:00:02]} 10. Qb3 {[%emt 0:03:08]} Qb6 {[%emt 0:00:30]} 11. Bb5 {[%emt 0:00:16]} Kd8 {[%emt 0:03:03]} 12. Qa4 {[%emt 0:02:36]} Nxe5 {[%emt 0:00:34]} 13. dxe5 {[%emt 0:00:01]} Bc5 {[%emt 0:01:15]} 14. O-O {[%emt 0:00:32]} a6 {[%emt 0:01:04]} 15. b4 {[%emt 0:01:15]} Bxe3 {[%emt 0:00:52]} 16. Nxd5 {[%emt 0:00:27]} exd5 {[%emt 0:00:04]} 17. fxe3 {[%emt 0:00:05]} Be6 {[%emt 0:00:21]} 18. Be2 {[%emt 0:01:03]} Qxe3+ {[%emt 0:00:10]} 19. Rf2 {[%emt 0:00:00]} Qxe5 {[%emt 0:00:02]} 20. Rd1 {[%emt 0:00:05]} Ke7 {[%emt 0:00:10]} 21. Bf3 {[%emt 0:00:34]} Rhd8 {[%emt 0:00:30]} 22. Re2 {[%emt 0:00:26]} Qc3 {[%emt 0:01:12]} 23. Bxd5 {[%emt 0:01:08]} b5 {[%emt 0:00:26]} 24. Qb3 {[%emt 0:00:18]} Qxb3 {[%emt 0:00:11]} 25. Bxb3 {[%emt 0:00:01]} Rxd1+ {[%emt 0:00:03]} 26. Bxd1 {[%emt 0:00:01]} Rd8 {[%emt 0:00:12]} 27. Bb3 {[%emt 0:00:02]} Rd4 {[%emt 0:00:11]} 28. a3 {[%emt 0:00:21]} Rd3 {[%emt 0:00:05]} 29. Bxe6 {[%emt 0:00:10]} fxe6 30. a4 bxa4 {[%emt 0:00:17]} 31. Re5 {[%emt 0:00:01]} Rd5 32. Re2 {[%emt 0:02:09]} a3 {[%emt 0:00:25]} 33. Ra2 {[%emt 0:00:11]} Rd3 {[%emt 0:00:02]} 34. Kf1 {[%emt 0:00:02]} Rb3 {[%emt 0:00:01]} 35. Ke1 {[%emt 0:00:02]} Kd6 {[%emt 0:00:43]} 36. Kd1 {[%emt 0:00:03]} Kd5 {[%emt 0:00:05]} 0-1

[Event "EIRCC 2019"]
[Site "Tallinn"]
[Date "2019.12.05"]
[Round "2.33"]
[White "Usmanov, Vasily"]
[Black "Player, Edmund C"]
[Result "1-0"]
[ECO "A06"]
[WhiteElo "2428"]
[BlackElo "2117"]
[Annotator "NA"]
[PlyCount "99"]
[EventDate "2019.12.05"]
[EventType "swiss"]
[EventCountry "EST"]
[SourceTitle "playchess.com"]
[Source "ChessBase"]
[SourceQuality "1"]
[TimeControl "900+10"]

1. Nf3 {[%emt 0:00:00]} d5 {[%emt 0:00:00]} 2. e3 {[%emt 0:00:00]} Bg4 {[%emt 0:00:53]} 3. c4 {[%emt 0:00:00]} e6 {[%emt 0:04:55]} 4. cxd5 {[%emt 0:02:27]} Bxf3 {[%emt 0:02:20]} 5. gxf3 {[%emt 0:02:29]} exd5 {[%emt 0:00:02]} 6. Qb3 {[%emt 0:00:57]} b6 {[%emt 0:00:25]} 7. Nc3 {[%emt 0:02:54]} Nf6 {[%emt 0:00:53]} 8. Rg1 {[%emt 0:00:07]} g6 {[%emt 0:00:35]} 9. d4 {[%emt 0:00:46]} Bg7 {[%emt 0:00:13]} 10. Rg5 {[%emt 0:00:08]} c6 {[%emt 0:00:38]} 11. Qa3 {[%emt 0:00:54]} Nbd7 {[%emt 0:01:51]} 12. Ba6 {[%emt 0:00:03]} Qc7 {[%emt 0:00:32]} 13. Bd2 {[%emt 0:00:09]} Bf8 {[%emt 0:00:24]} 14. Qb3 {[%emt 0:00:20]} Bd6 {[%emt 0:00:26]} 15. Rc1 {[%emt 0:00:11]} Qb8 {[%emt 0:01:12]} 16. Na4 {[%emt 0:02:09]} b5 {[%emt 0:00:39]} 17. Rxc6 {[%emt 0:00:39]} bxa4 {[%emt 0:00:01]} 18. Qxb8+ {[%emt 0:00:05]} Rxb8 {[%emt 0:00:07]} 19. Rxd6 {[%emt 0:00:01]} h6 {[%emt 0:00:45]} 20. Rgxd5 {[%emt 0:00:49]} Nxd5 {[%emt 0:00:28]} 21. Rxd5 {[%emt 0:00:01]} Nb6 {[%emt 0:00:42]} 22. Re5+ {[%emt 0:00:09]} Kf8 {[%emt 0:00:02]} 23. Bc3 {[%emt 0:00:45]} Rd8 {[%emt 0:00:09]} 24. e4 {[%emt 0:00:19]} Kg7 {[%emt 0:00:29]} 25. d5 {[%emt 0:00:03]} Kh7 {[%emt 0:00:04]} 26. Re7 {[%emt 0:00:03]} Rd7 {[%emt 0:00:02]} 27. Rxd7 {[%emt 0:00:04]} Nxd7 {[%emt 0:00:04]} 28. Bxh8 {[%emt 0:00:02]} Kxh8 {[%emt 0:00:01]} 29. Bb5 {[%emt 0:00:12]} Nc5 {[%emt 0:00:03]} 30. d6 {[%emt 0:00:15]} Kg7 {[%emt 0:00:01]} 31. Bxa4 {[%emt 0:01:22]} Kf6 {[%emt 0:00:12]} 32. Bb3 {[%emt 0:00:47]} g5 {[%emt 0:00:53]} 33. Kd2 {[%emt 0:00:17]} Nd7 {[%emt 0:00:17]} 34. Ke3 {[%emt 0:00:08]} Ke5 {[%emt 0:00:09]} 35. Bxf7 {[%emt 0:00:03]} Kxd6 {[%emt 0:00:01]} 36. f4 {[%emt 0:00:16]} gxf4+ {[%emt 0:00:06]} 37. Kxf4 {[%emt 0:00:01]} Ne5 {[%emt 0:00:00]} 38. Bb3 {[%emt 0:00:02]} Nd3+ {[%emt 0:00:02]} 39. Ke3 {[%emt 0:00:01]} Ne5 {[%emt 0:00:22]} 40. f4 {[%emt 0:00:38]} Ng4+ {[%emt 0:00:03]} 41. Kd4 {[%emt 0:00:19]} Nxh2 {[%emt 0:00:08]} 42. e5+ {[%emt 0:00:01]} Ke7 {[%emt 0:00:04]} 43. Bd1 {[%emt 0:00:06]} Nf1 {[%emt 0:00:03]} 44. f5 {[%emt 0:00:03]} Ng3 {[%emt 0:00:07]} 45. f6+ {[%emt 0:00:02]} Kf7 {[%emt 0:00:18]} 46. Bb3+ {[%emt 0:00:10]} Kg6 {[%emt 0:00:01]} 47. Bc2+ {[%emt 0:00:01]} Kf7 {[%emt 0:00:04]} 48. Kd5 {[%emt 0:00:34]} h5 {[%emt 0:00:13]} 49. Kd6 {[%emt 0:00:02]} h4 {[%emt 0:00:03]} 50. e6+ {[%emt 0:00:07]} 1-0

[Event "EIRCC 2019"]
[Site "Tallinn"]
[Date "2019.12.05"]
[Round "2.34"]
[White "Grewenig, Jan"]
[Black "Mohr, Georg"]
[Result "1-0"]
[ECO "B00"]
[WhiteElo "2122"]
[BlackElo "2424"]
[Annotator "NA"]
[PlyCount "65"]
[EventDate "2019.12.05"]
[EventType "swiss"]
[EventCountry "EST"]
[SourceTitle "playchess.com"]
[Source "ChessBase"]
[SourceQuality "1"]
[TimeControl "900+10"]

1. e4 {[%emt 0:00:00]} Nc6 {[%emt 0:00:14]} 2. Nf3 {[%emt 0:00:25]} d6 {[%emt 0:00:02]} 3. d4 {[%emt 0:00:31]} Nf6 {[%emt 0:00:04]} 4. Nc3 {[%emt 0:00:03]} Bg4 {[%emt 0:00:02]} 5. Bb5 {[%emt 0:00:42]} a6 {[%emt 0:00:05]} 6. Bxc6+ {[%emt 0:00:04]} bxc6 {[%emt 0:00:02]} 7. h3 {[%emt 0:00:02]} Bh5 {[%emt 0:00:34]} 8. g4 {[%emt 0:01:35]} Bg6 {[%emt 0:00:02]} 9. Qe2 {[%emt 0:00:03]} e6 {[%emt 0:02:24]} 10. Nh4 {[%emt 0:01:54]} d5 {[%emt 0:03:56]} 11. Nxg6 {[%emt 0:03:05]} hxg6 {[%emt 0:00:04]} 12. Bg5 {[%emt 0:02:25]} Be7 {[%emt 0:01:15]} 13. Bxf6 {[%emt 0:01:18]} Bxf6 {[%emt 0:01:12]} 14. O-O-O {[%emt 0:02:01]} Qd6 {[%emt 0:03:42]} 15. a3 {[%emt 0:01:23]} Qf4+ {[%emt 0:01:00]} 16. Kb1 {[%emt 0:00:02]} Kd7 {[%emt 0:01:15]} 17. Rd3 {[%emt 0:00:16]} Qg5 {[%emt 0:00:50]} 18. f4 {[%emt 0:01:10]} Qh4 {[%emt 0:00:36]} 19. Na4 {[%emt 0:00:16]} Be7 {[%emt 0:00:03]} 20. c4 {[%emt 0:00:06]} dxe4 {[%emt 0:00:18]} 21. Qxe4 {[%emt 0:00:06]} Qf2 {[%emt 0:00:19]} 22. Nc5+ {[%emt 0:00:48]} Bxc5 {[%emt 0:00:00]} 23. dxc5+ {[%emt 0:00:01]} Ke7 {[%emt 0:00:06]} 24. Qxc6 {[%emt 0:00:02]} Rhd8 {[%emt 0:00:07]} 25. Qxc7+ {[%emt 0:00:04]} Ke8 26. Rhd1 {[%emt 0:00:26]} Rdc8 {[%emt 0:00:44]} 27. Qe5 {[%emt 0:00:03]} Rab8 {[%emt 0:00:05]} 28. Qxg7 {[%emt 0:00:16]} Qxf4 {[%emt 0:00:08]} 29. Qg8+ {[%emt 0:00:14]} Ke7 {[%emt 0:00:01]} 30. Rd7+ {[%emt 0:00:01]} Kf6 {[%emt 0:00:00]} 31. Qxf7+ {[%emt 0:00:31]} Kg5 {[%emt 0:00:01]} 32. Qe7+ {[%emt 0:00:06]} Kh6 {[%emt 0:00:13]} 33. Qh4# {[%emt 0:00:02]} 1-0

[Event "EIRCC 2019"]
[Site "Tallinn"]
[Date "2019.12.05"]
[Round "2.35"]
[White "Pohjala, Henri"]
[Black "Dumcheva, Julia"]
[Result "1-0"]
[ECO "A45"]
[WhiteElo "2418"]
[BlackElo "2113"]
[Annotator "RC"]
[PlyCount "77"]
[EventDate "2019.12.05"]
[EventType "swiss"]
[EventCountry "EST"]
[SourceTitle "playchess.com"]
[Source "ChessBase"]
[SourceQuality "1"]
[TimeControl "900+10"]

1. d4 {[%emt 0:00:00]} Nf6 {[%emt 0:00:00]} 2. Bg5 {[%emt 0:00:00]} Ne4 {[%emt 0:00:16]} 3. Bf4 {[%emt 0:00:00]} d5 {[%emt 0:00:21]} 4. e3 {[%emt 0:00:04]} f5 {[%emt 0:00:25]} 5. Bd3 {[%emt 0:02:47]} Nf6 {[%emt 0:01:25]} 6. Nf3 {[%emt 0:03:11]} e6 {[%emt 0:00:13]} 7. O-O {[%emt 0:01:25]} Be7 {[%emt 0:00:23]} 8. Nbd2 {[%emt 0:02:24]} O-O {[%emt 0:00:10]} 9. Ne5 {[%emt 0:00:31]} Nbd7 {[%emt 0:00:29]} 10. Bg3 {[%emt 0:01:10]} c5 {[%emt 0:00:42]} 11. c3 {[%emt 0:00:08]} Nxe5 {[%emt 0:01:09]} 12. Bxe5 {[%emt 0:00:07]} b6 {[%emt 0:00:30]} 13. Qe2 {[%emt 0:00:24]} a5 {[%emt 0:00:13]} 14. Kh1 {[%emt 0:00:28]} Bd6 {[%emt 0:01:13]} 15. Bxd6 {[%emt 0:00:33]} Qxd6 {[%emt 0:00:02]} 16. f4 {[%emt 0:00:03]} c4 {[%emt 0:00:23]} 17. Bc2 {[%emt 0:00:11]} b5 {[%emt 0:00:05]} 18. Nf3 {[%emt 0:00:39]} b4 {[%emt 0:00:17]} 19. a3 {[%emt 0:00:19]} Bd7 {[%emt 0:00:52]} 20. Ne5 {[%emt 0:00:08]} Rfb8 {[%emt 0:00:24]} 21. g4 {[%emt 0:01:11]} bxc3 {[%emt 0:00:16]} 22. bxc3 {[%emt 0:00:02]} Rb2 {[%emt 0:00:06]} 23. gxf5 {[%emt 0:00:37]} exf5 {[%emt 0:00:28]} 24. Rfb1 {[%emt 0:01:00]} Rab8 {[%emt 0:00:04]} 25. Qd1 {[%emt 0:00:29]} Ne4 {[%emt 0:02:46]} 26. Qc1 {[%emt 0:00:01]} Rxb1 {[%emt 0:00:15]} 27. Rxb1 {[%emt 0:00:02]} Be8 {[%emt 0:00:56]} 28. Rxb8 {[%emt 0:01:11]} Qxb8 {[%emt 0:00:01]} 29. Bxe4 {[%emt 0:00:06]} fxe4 {[%emt 0:00:04]} 30. f5 {[%emt 0:00:01]} Qb6 {[%emt 0:00:55]} 31. Qf1 {[%emt 0:00:28]} Qh6 {[%emt 0:00:41]} 32. Qf2 {[%emt 0:00:21]} Qg5 {[%emt 0:00:11]} 33. h4 {[%emt 0:00:14]} Qh5 {[%emt 0:01:03]} 34. Kh2 {[%emt 0:00:02]} Qd1 {[%emt 0:00:12]} 35. Kg3 {[%emt 0:00:18]} Qc1 {[%emt 0:00:15]} 36. f6 {[%emt 0:00:09]} gxf6 {[%emt 0:00:03]} 37. Ng4 {[%emt 0:00:01]} f5 {[%emt 0:00:51]} 38. Qxf5 {[%emt 0:00:15]} Bf7 {[%emt 0:00:44]} 39. Nh6+ {[%emt 0:00:07]} 1-0

[Event "EIRCC 2019"]
[Site "Tallinn"]
[Date "2019.12.05"]
[Round "2.36"]
[White "D`costa, Lorin"]
[Black "Bossy, Arnim"]
[Result "0-1"]
[ECO "A80"]
[WhiteElo "2407"]
[BlackElo "2108"]
[Annotator "NA"]
[PlyCount "68"]
[EventDate "2019.12.05"]
[EventType "swiss"]
[EventCountry "EST"]
[SourceTitle "playchess.com"]
[Source "ChessBase"]
[SourceQuality "1"]
[TimeControl "900+10"]

1. d4 {[%emt 0:00:00]} f5 {[%emt 0:00:07]} 2. Bg5 {[%emt 0:00:24]} g6 {[%emt 0:00:08]} 3. Nc3 {[%emt 0:00:15]} Bg7 {[%emt 0:00:05]} 4. h4 {[%emt 0:00:05]} h6 {[%emt 0:00:05]} 5. Bf4 {[%emt 0:00:03]} Nf6 {[%emt 0:00:01]} 6. Qd2 {[%emt 0:00:25]} d6 {[%emt 0:01:36]} 7. O-O-O {[%emt 0:00:45]} Nc6 {[%emt 0:00:50]} 8. e3 {[%emt 0:01:20]} e6 {[%emt 0:00:19]} 9. Kb1 {[%emt 0:02:38]} Qe7 {[%emt 0:00:09]} 10. f3 {[%emt 0:02:02]} Bd7 {[%emt 0:02:51]} 11. Bg3 {[%emt 0:00:21]} e5 {[%emt 0:03:32]} 12. Nge2 {[%emt 0:01:46]} a6 {[%emt 0:00:59]} 13. Nc1 {[%emt 0:01:17]} O-O-O {[%emt 0:00:48]} 14. Bf2 {[%emt 0:00:34]} Kb8 {[%emt 0:00:46]} 15. Bc4 {[%emt 0:00:40]} Ka8 {[%emt 0:01:52]} 16. Rhe1 {[%emt 0:00:50]} e4 {[%emt 0:00:07]} 17. a3 {[%emt 0:00:35]} Bc8 {[%emt 0:00:13]} 18. Nd5 {[%emt 0:00:27]} Nxd5 {[%emt 0:00:21]} 19. Bxd5 {[%emt 0:00:01]} Bd7 {[%emt 0:00:09]} 20. Na2 {[%emt 0:01:24]} Qe8 {[%emt 0:00:28]} 21. Nc3 {[%emt 0:00:24]} exf3 {[%emt 0:00:20]} 22. gxf3 {[%emt 0:00:01]} Ne7 {[%emt 0:00:40]} 23. Bb3 {[%emt 0:00:03]} Ng8 {[%emt 0:00:07]} 24. e4 {[%emt 0:00:10]} fxe4 {[%emt 0:00:01]} 25. fxe4 {[%emt 0:00:06]} Nf6 {[%emt 0:00:05]} 26. Bg1 {[%emt 0:00:53]} Ng4 {[%emt 0:00:06]} 27. Nd5 {[%emt 0:00:07]} Kb8 {[%emt 0:00:07]} 28. Qa5 {[%emt 0:00:07]} Rc8 {[%emt 0:00:13]} 29. Nb4 {[%emt 0:00:24]} Rd8 {[%emt 0:00:13]} 30. e5 {[%emt 0:00:49]} dxe5 {[%emt 0:00:35]} 31. dxe5 {[%emt 0:00:01]} Bb5 {[%emt 0:01:04]} 32. a4 {[%emt 0:00:20]} Rxd1+ {[%emt 0:00:11]} 33. Rxd1 {[%emt 0:00:01]} Qxe5 {[%emt 0:00:02]} 34. c3 {[%emt 0:00:42]} Bd3+ {[%emt 0:00:14]} 0-1